fUSD/lending_fUSD_20240725
["ID","MTS","AMOUNT","RATE_DAILY","PERIOD"]
[333159359,1721895044707,-1707.1,0.00010984,2]
[333159360,1721895044717,-781.66,0.00010984,2]
[333159361,1721895044726,-500.0,0.00010984,2]
[333159362,1721895044736,-500.0,0.00010984,2]
[333159363,1721895044745,-1232.44,0.00010984,2]
[333159364,1721895044755,-166.21592106,0.00010984,2]
[333159365,1721895044764,-8921.7192849,0.00010985,2]
[333159366,1721895044773,-5519.9096687,0.00010985,2]
[333159367,1721895044783,-500.0,0.00010985,2]
[333159368,1721895044793,-500.0,0.00010985,2]
[333159369,1721895044802,-500.0,0.00010985,2]
[333159370,1721895044812,-500.0,0.00010985,2]
[333159371,1721895044822,-500.0,0.00010985,2]
[333159372,1721895044831,-271.24,0.00010985,2]
[333159373,1721895044841,-500.0,0.00010985,2]
[333159374,1721895044851,-500.0,0.00010985,2]
[333159375,1721895044860,-500.0,0.00010985,2]
[333159376,1721895044872,-500.0,0.00010985,2]
[333159377,1721895044881,-500.0,0.00010985,2]
[333159378,1721895044891,-500.0,0.00010985,2]
[333159379,1721895044902,-500.0,0.00010985,2]
[333159380,1721895044911,-500.0,0.00010985,2]
[333159381,1721895044920,-41167.7378434,0.00010985,2]
[333159382,1721895044930,-500.0,0.00010985,2]
[333159383,1721895044939,-500.0,0.00010985,2]
[333159384,1721895044948,-500.0,0.00010985,2]
[333159385,1721895044958,-500.0,0.00010985,2]
[333159386,1721895044967,-565.08,0.00010985,2]
[333159387,1721895044977,-9924.8770382,0.00010985,2]
[333159388,1721895044986,-1663.27,0.00010985,2]
[333159389,1721895044996,-500.0,0.00010985,2]
[333159390,1721895045005,-500.0,0.00010985,2]
[333159391,1721895045014,-910.05,0.00010985,2]
[333159392,1721895045023,-500.0,0.00010985,2]
[333159393,1721895045033,-500.0,0.00010985,2]
[333159394,1721895045042,-500.0,0.00010985,2]
[333159395,1721895045051,-500.0,0.00010986,2]
[333159396,1721895045061,-500.0,0.00010986,2]
[333159397,1721895045070,-500.0,0.00010986,2]
[333159398,1721895045079,-500.0,0.00010986,2]
[333159399,1721895045088,-326.52,0.00010986,2]
[333159400,1721895045098,-959.5,0.00010986,2]
[333159401,1721895045107,-500.0,0.00010986,2]
[333159402,1721895045121,-1117.95,0.00010986,2]
[333159403,1721895045131,-500.0,0.00010986,2]
[333159404,1721895045140,-500.0,0.00010986,2]
[333159405,1721895045151,-756.46,0.00010986,2]
[333159406,1721895045160,-1190.2,0.00010986,2]
[333159407,1721895045170,-500.0,0.00010986,2]
[333159408,1721895045179,-500.0,0.00010986,2]
[333159409,1721895045189,-500.0,0.00010986,2]
[333159410,1721895045198,-500.0,0.00010986,2]
[333159411,1721895045207,-500.0,0.00010986,2]
[333159412,1721895045216,-151.60269209,0.00010986,2]
[333159413,1721895045226,-500.0,0.00010986,2]
[333159414,1721895045237,-500.0,0.00010986,2]
[333159415,1721895045247,-500.0,0.00010986,2]
[333159416,1721895045256,-636.51,0.00010986,2]
[333159417,1721895045266,-500.0,0.00010986,2]
[333159418,1721895045276,-500.0,0.00010986,2]
[333159419,1721895045286,-500.0,0.00010986,2]
[333159420,1721895045295,-500.0,0.00010986,2]
[333159421,1721895045305,-540.1,0.00010986,2]
[333159422,1721895045315,-500.0,0.00010986,2]
[333159423,1721895045325,-216.75963679,0.00010986,2]
[333159424,1721895045334,-500.0,0.00010986,2]
[333159425,1721895045345,-425.6,0.00010986,2]
[333159426,1721895045354,-500.0,0.00010986,2]
[333159427,1721895045363,-150.0,0.00010986,2]
[333159428,1721895045374,-500.0,0.00010986,2]
[333159429,1721895045384,-805.4,0.00010986,2]
[333159430,1721895045393,-805.4,0.00010986,2]
[333159431,1721895045402,-500.0,0.00010986,2]
[333159432,1721895045411,-259.54347282,0.00010986,2]
[333159433,1721895045421,-238.38,0.00010986,2]
[333159434,1721895045430,-500.0,0.00010986,2]
[333159435,1721895045440,-316.14,0.00010986,2]
[333159436,1721895045449,-516.61,0.00010986,2]
[333159437,1721895045459,-557.66,0.00010986,2]
[333159438,1721895045468,-500.0,0.00010986,2]
[333159439,1721895045477,-500.0,0.00010986,2]
[333159440,1721895045486,-500.0,0.00010986,2]
[333159441,1721895045495,-500.0,0.00010986,2]
[333159442,1721895045547,-515.0,0.00010986,2]
[333159443,1721895045556,-500.0,0.00010986,2]
[333159444,1721895045567,-500.0,0.00010986,2]
[333159445,1721895045576,-500.0,0.00010986,2]
[333159446,1721895045585,-500.0,0.00010986,2]
[333159447,1721895045594,-500.0,0.00010986,2]
[333159448,1721895045603,-500.0,0.00010986,2]
[333159449,1721895045613,-500.0,0.00010986,2]
[333159450,1721895045623,-500.0,0.00010986,2]
[333159451,1721895045632,-500.0,0.00010986,2]
[333159452,1721895045641,-1431.8,0.00010986,2]
[333159453,1721895045650,-1431.8,0.00010986,2]
[333159454,1721895045659,-515.63,0.00010986,2]
[333159455,1721895045668,-500.0,0.00010986,2]
[333159456,1721895045678,-170.92,0.00010986,2]
[333159457,1721895045687,-572.39585579,0.00010986,2]
[333159458,1721895045696,-500.0,0.00010986,2]
[333159459,1721895045705,-500.0,0.00010986,2]
[333159460,1721895045714,-500.0,0.00010986,2]
[333159461,1721895045723,-500.0,0.00010986,2]
[333159462,1721895045733,-1498.81,0.00010986,2]
[333159463,1721895045742,-326.29,0.00010986,2]
[333159464,1721895045751,-500.0,0.00010986,2]
[333159465,1721895045760,-1306.88,0.00010986,2]
[333159466,1721895045770,-1306.88,0.00010986,2]
[333159467,1721895045779,-500.0,0.00010986,2]
[333159468,1721895045788,-2345.74,0.00010986,2]
[333159469,1721895045798,-2345.74,0.00010986,2]
[333159470,1721895045807,-500.0,0.00010986,2]
[333159471,1721895045816,-500.0,0.00010986,2]
[333159472,1721895045826,-1335.96,0.00010986,2]
[333159473,1721895045835,-737.33,0.00010986,2]
[333159474,1721895045844,-737.33,0.00010986,2]
[333159475,1721895045856,-500.0,0.00010986,2]
[333159476,1721895045866,-500.0,0.00010986,2]
[333159477,1721895045876,-1719.81,0.00010986,2]
[333159478,1721895045885,-1719.81,0.00010986,2]
[333159479,1721895045894,-369.62,0.00010986,2]
[333159480,1721895045903,-500.0,0.00010986,2]
[333159481,1721895045912,-500.0,0.00010986,2]
[333159482,1721895045921,-500.0,0.00010986,2]
[333159483,1721895045932,-500.0,0.00010986,2]
[333159484,1721895045941,-765.91,0.00010986,2]
[333159485,1721895045950,-500.0,0.00010986,2]
[333159487,1721895045959,-500.0,0.00010986,2]
[333159488,1721895045969,-500.0,0.00010986,2]
[333159489,1721895045978,-500.0,0.00010986,2]
[333159490,1721895045987,-500.0,0.00010986,2]
[333159491,1721895045997,-500.0,0.00010986,2]
[333159492,1721895046006,-500.0,0.00010986,2]
[333159493,1721895046015,-500.0,0.00010986,2]
[333159494,1721895046025,-735.78,0.00010986,2]
[333159495,1721895046034,-500.0,0.00010986,2]
[333159496,1721895046043,-278.99,0.00010986,2]
[333159497,1721895046053,-501.46,0.00010986,2]
[333159498,1721895046062,-500.0,0.00010986,2]
[333159499,1721895046071,-500.0,0.00010986,2]
[333159500,1721895046081,-1483.62,0.00010986,2]
[333159501,1721895046090,-500.0,0.00010986,2]
[333159502,1721895046100,-500.0,0.00010986,2]
[333159503,1721895046110,-1679.07,0.00010986,2]
[333159504,1721895046124,-500.0,0.00010986,2]
[333159506,1721895046134,-500.0,0.00010986,2]
[333159507,1721895046143,-2884.54,0.00010986,2]
[333159508,1721895046152,-859.54,0.00010986,2]
[333159509,1721895046163,-1323.5,0.00010986,2]
[333159510,1721895046172,-500.0,0.00010986,2]
[333159511,1721895046182,-2567.81,0.00010986,2]
[333159512,1721895046191,-500.0,0.00010986,2]
[333159513,1721895046202,-321.98,0.00010986,2]
[333159514,1721895046212,-500.0,0.00010986,2]
[333159515,1721895046222,-500.0,0.00010986,2]
[333159516,1721895046232,-500.0,0.00010986,2]
[333159517,1721895046241,-826.46,0.00010986,2]
[333159518,1721895046250,-500.0,0.00010986,2]
[333159519,1721895046259,-395.48736336,0.00010986,2]
[333159520,1721895046268,-500.0,0.00010986,2]
[333159521,1721895046278,-500.0,0.00010986,2]
[333159522,1721895046287,-500.0,0.00010986,2]
[333159523,1721895046296,-478.92,0.00010986,2]
[333159524,1721895046305,-500.0,0.00010986,2]
[333159525,1721895046314,-500.0,0.00010986,2]
[333159526,1721895046324,-563.89,0.00010986,2]
[333159527,1721895046333,-500.0,0.00010986,2]
[333159528,1721895046343,-500.0,0.00010986,2]
[333159529,1721895046352,-500.0,0.00010986,2]
[333159530,1721895046362,-500.0,0.00010986,2]
[333159531,1721895046374,-828.51,0.00010986,2]
[333159532,1721895046384,-500.0,0.00010986,2]
[333159533,1721895046394,-500.0,0.00010986,2]
[333159534,1721895046404,-500.0,0.00010986,2]
[333159535,1721895046414,-1105.73,0.00010986,2]
[333159536,1721895046424,-611.64,0.00010986,2]
[333159537,1721895046435,-500.0,0.00010986,2]
[333159538,1721895046444,-500.0,0.00010986,2]
[333159539,1721895046454,-500.0,0.00010986,2]
[333159540,1721895046463,-500.0,0.00010986,2]
[333159541,1721895046473,-7756.09,0.00010986,2]
[333159542,1721895046483,-500.0,0.00010986,2]
[333159543,1721895046492,-1001.5,0.00010986,2]
[333159544,1721895046502,-500.0,0.00010986,2]
[333159545,1721895046512,-500.0,0.00010986,2]
[333159546,1721895046521,-500.0,0.00010986,2]
[333159547,1721895046533,-500.0,0.00010986,2]
[333159548,1721895046553,-500.0,0.00010986,2]
[333159549,1721895046564,-500.0,0.00010986,2]
[333159550,1721895046575,-500.0,0.00010986,2]
[333159551,1721895046584,-1166.69,0.00010986,2]
[333159552,1721895046594,-500.0,0.00010986,2]
[333159553,1721895046604,-3176.77,0.00010986,2]
[333159554,1721895046614,-500.0,0.00010986,2]
[333159556,1721895046626,-500.0,0.00010986,2]
[333159557,1721895046636,-500.0,0.00010986,2]
[333159559,1721895046646,-286.02,0.00010986,2]
[333159560,1721895046656,-500.0,0.00010986,2]
[333159561,1721895046666,-1086.82,0.00010986,2]
[333159562,1721895046675,-500.0,0.00010986,2]
[333159563,1721895046685,-500.0,0.00010986,2]
[333159564,1721895046694,-825.37,0.00010986,2]
[333159565,1721895046703,-500.0,0.00010986,2]
[333159566,1721895046713,-500.0,0.00010986,2]
[333159567,1721895046723,-500.0,0.00010986,2]
[333159568,1721895046733,-500.0,0.00010986,2]
[333159569,1721895046742,-500.0,0.00010986,2]
[333159570,1721895046752,-500.0,0.00010986,2]
[333159571,1721895046761,-1572.32,0.00010986,2]
[333159572,1721895046771,-500.0,0.00010986,2]
[333159573,1721895046780,-500.0,0.00010986,2]
[333159574,1721895046789,-500.0,0.00010986,2]
[333159575,1721895046799,-896.85,0.00010986,2]
[333159576,1721895046808,-500.92,0.00010986,2]
[333159577,1721895046817,-500.0,0.00010986,2]
[333159578,1721895046827,-500.0,0.00010986,2]
[333159579,1721895046838,-514.76,0.00010986,2]
[333159580,1721895046848,-2636.17,0.00010986,2]
[333159581,1721895046857,-589.31,0.00010986,2]
[333159582,1721895046868,-1454.16,0.00010986,2]
[333159583,1721895046877,-474.26,0.00010986,2]
[333159584,1721895046887,-500.0,0.00010986,2]
[333159585,1721895046897,-555.33,0.00010986,2]
[333159586,1721895046906,-500.0,0.00010986,2]
[333159587,1721895046916,-464.88,0.00010986,2]
[333159588,1721895046925,-932.58,0.00010986,2]
[333159589,1721895046934,-382.69,0.00010986,2]
[333159590,1721895046945,-1707.1,0.00010986,2]
[333159591,1721895046955,-781.66,0.00010986,2]
[333159592,1721895046964,-500.0,0.00010986,2]
[333159593,1721895046974,-500.0,0.00010986,2]
[333159594,1721895046984,-1232.44,0.00010986,2]
[333159595,1721895046993,-500.0,0.00010987,2]
[333159596,1721895047003,-246.54965762,0.00010987,2]
[333159597,1721895047012,-586.47507857,0.00010987,2]
[333159598,1721895047022,-500.0,0.00010987,2]
[333159599,1721895047032,-500.0,0.00010987,2]
[333159600,1721895047041,-500.0,0.00010987,2]
[333159601,1721895047051,-500.0,0.00010987,2]
[333159602,1721895047060,-339.77,0.00010987,2]
[333159603,1721895047071,-500.0,0.00010987,2]
[333159604,1721895047080,-959.5,0.00010987,2]
[333159605,1721895047090,-206.90588558,0.00010987,2]
[333159606,1721895047100,-1117.95,0.00010987,2]
[333159607,1721895047110,-500.0,0.00010987,2]
[333159608,1721895047125,-500.0,0.00010987,2]
[333159609,1721895047136,-756.46,0.00010987,2]
[333159610,1721895047146,-1190.2,0.00010987,2]
[333159611,1721895047157,-500.0,0.00010987,2]
[333159612,1721895047166,-500.0,0.00010987,2]
[333159613,1721895047175,-500.0,0.00010987,2]
[333159614,1721895047185,-636.51,0.00010987,2]
[333159615,1721895047195,-500.0,0.00010987,2]
[333159616,1721895047205,-500.0,0.00010987,2]
[333159617,1721895047215,-500.0,0.00010987,2]
[333159618,1721895047225,-805.4,0.00010987,2]
[333159619,1721895047234,-562.02788604,0.00010987,2]
[333159620,1721895047244,-500.0,0.00010987,2]
[333159621,1721895047254,-500.0,0.00010987,2]
[333159622,1721895047263,-500.0,0.00010987,2]
[333159623,1721895047272,-500.0,0.00010987,2]
[333159624,1721895047282,-356.92,0.00010987,2]
[333159625,1721895047292,-500.0,0.00010987,2]
[333159626,1721895047305,-1431.8,0.00010987,2]
[333159627,1721895047315,-515.63,0.00010987,2]
[333159628,1721895047325,-500.0,0.00010987,2]
[333159629,1721895047334,-500.0,0.00010987,2]
[333159630,1721895047344,-500.0,0.00010987,2]
[333159631,1721895047353,-1498.81,0.00010987,2]
[333159632,1721895047363,-1306.88,0.00010987,2]
[333159633,1721895047373,-2345.74,0.00010987,2]
[333159634,1721895047383,-737.33,0.00010987,2]
[333159635,1721895047393,-1719.81,0.00010987,2]
[333159636,1721895047402,-500.0,0.00010988,2]
[333159637,1721895047411,-594.10317691,0.00010988,2]
[333159638,1721895047421,-500.0,0.00010988,2]
[333159639,1721895047431,-500.0,0.00010988,2]
[333159640,1721895047441,-500.0,0.00010988,2]
[333159641,1721895047450,-507.44212456,0.00010988,2]
[333159642,1721895047460,-500.0,0.00010988,2]
[333159643,1721895047470,-188.13856384,0.00010988,2]
[333159644,1721895047479,-959.5,0.00010988,2]
[333159645,1721895047489,-959.5,0.00010988,2]
[333159646,1721895047498,-1117.95,0.00010988,2]
[333159647,1721895047508,-1117.95,0.00010988,2]
[333159648,1721895047518,-500.0,0.00010988,2]
[333159649,1721895047527,-500.0,0.00010988,2]
[333159650,1721895047537,-500.0,0.00010988,2]
[333159651,1721895047546,-500.0,0.00010988,2]
[333159652,1721895047556,-756.46,0.00010988,2]
[333159653,1721895047565,-756.46,0.00010988,2]
[333159654,1721895047575,-1190.2,0.00010988,2]
[333159655,1721895047585,-1190.2,0.00010988,2]
[333159656,1721895047595,-294.84,0.00010988,2]
[333159657,1721895047604,-500.0,0.00010988,2]
[333159658,1721895047615,-500.0,0.00010988,2]
[333159659,1721895047626,-500.0,0.00010988,2]
[333159660,1721895047635,-500.0,0.00010988,2]
[333159661,1721895047645,-514.3154667,0.00010988,2]
[333159662,1721895047655,-500.0,0.00010988,2]
[333159663,1721895047665,-500.0,0.00010988,2]
[333159664,1721895047675,-636.51,0.00010988,2]
[333159665,1721895047685,-636.51,0.00010988,2]
[333159666,1721895047695,-500.0,0.00010988,2]
[333159667,1721895047704,-500.0,0.00010988,2]
[333159668,1721895047714,-500.0,0.00010988,2]
[333159669,1721895047723,-500.0,0.00010988,2]
[333159670,1721895047733,-500.0,0.00010988,2]
[333159671,1721895047743,-500.0,0.00010988,2]
[333159672,1721895047752,-324.06,0.00010988,2]
[333159673,1721895047761,-150.0,0.00010988,2]
[333159674,1721895047771,-500.0,0.00010988,2]
[333159675,1721895047781,-805.4,0.00010988,2]
[333159676,1721895047791,-805.4,0.00010988,2]
[333159677,1721895047800,-280.44,0.00010988,2]
[333159678,1721895047810,-261.62,0.00010988,2]
[333159679,1721895047819,-500.0,0.00010988,2]
[333159680,1721895047829,-157.18,0.00010988,2]
[333159681,1721895047839,-159.5,0.00010988,2]
[333159682,1721895047848,-500.0,0.00010988,2]
[333159683,1721895047858,-353.04,0.00010988,2]
[333159684,1721895047869,-500.0,0.00010988,2]
[333159685,1721895047879,-500.0,0.00010988,2]
[333159686,1721895047888,-1431.8,0.00010988,2]
[333159687,1721895047898,-1431.8,0.00010988,2]
[333159688,1721895047908,-515.63,0.00010988,2]
[333159689,1721895047918,-515.63,0.00010988,2]
[333159690,1721895047928,-500.0,0.00010988,2]
[333159691,1721895047938,-500.0,0.00010988,2]
[333159692,1721895047948,-500.0,0.00010988,2]
[333159693,1721895047958,-500.0,0.00010988,2]
[333159694,1721895047968,-500.0,0.00010988,2]
[333159695,1721895047978,-500.0,0.00010988,2]
[333159696,1721895047988,-1498.81,0.00010988,2]
[333159697,1721895047998,-1498.81,0.00010988,2]
[333159698,1721895048008,-500.0,0.00010988,2]
[333159699,1721895048018,-1306.88,0.00010988,2]
[333159700,1721895048029,-1306.88,0.00010988,2]
[333159701,1721895048039,-500.0,0.00010988,2]
[333159702,1721895048049,-2345.74,0.00010988,2]
[333159703,1721895048060,-2345.74,0.00010988,2]
[333159704,1721895048070,-500.0,0.00010988,2]
[333159705,1721895048080,-500.0,0.00010988,2]
[333159706,1721895048091,-1335.96,0.00010988,2]
[333159707,1721895048101,-737.33,0.00010988,2]
[333159708,1721895048112,-737.33,0.00010988,2]
[333159709,1721895048126,-500.0,0.00010988,2]
[333159710,1721895048137,-500.0,0.00010988,2]
[333159711,1721895048149,-1719.81,0.00010988,2]
[333159712,1721895048160,-1719.81,0.00010988,2]
[333159713,1721895048171,-500.0,0.00010988,2]
[333159714,1721895048182,-500.0,0.00010988,2]
[333159715,1721895048193,-500.0,0.00010988,2]
[333159716,1721895048206,-500.0,0.00010988,2]
[333159717,1721895048217,-500.0,0.00010988,2]
[333159718,1721895048227,-500.0,0.00010988,2]
[333159719,1721895048238,-500.0,0.00010988,2]
[333159720,1721895048249,-500.0,0.00010988,2]
[333159721,1721895048260,-500.0,0.00010988,2]
[333159722,1721895048270,-500.0,0.00010988,2]
[333159723,1721895048281,-500.0,0.00010988,2]
[333159724,1721895048291,-416.95,0.00010988,2]
[333159725,1721895048302,-1483.62,0.00010988,2]
[333159726,1721895048313,-401.82,0.00010988,2]
[333159727,1721895048323,-500.0,0.00010988,2]
[333159728,1721895048333,-2884.54,0.00010988,2]
[333159729,1721895048343,-859.54,0.00010988,2]
[333159730,1721895048353,-1323.5,0.00010988,2]
[333159731,1721895048364,-500.0,0.00010988,2]
[333159732,1721895048375,-500.0,0.00010988,2]
[333159733,1721895048385,-500.0,0.00010988,2]
[333159734,1721895048395,-500.0,0.00010988,2]
[333159735,1721895048405,-500.0,0.00010988,2]
[333159736,1721895048415,-500.0,0.00010988,2]
[333159737,1721895048426,-500.0,0.00010988,2]
[333159738,1721895048436,-500.0,0.00010988,2]
[333159739,1721895048447,-500.0,0.00010988,2]
[333159740,1721895048457,-500.0,0.00010988,2]
[333159741,1721895048468,-500.0,0.00010988,2]
[333159742,1721895048478,-534.74176335,0.00010988,2]
[333159743,1721895048488,-500.0,0.00010988,2]
[333159744,1721895048499,-500.0,0.00010988,2]
[333159745,1721895048508,-500.0,0.00010988,2]
[333159746,1721895048519,-500.0,0.00010988,2]
[333159747,1721895048529,-459.07,0.00010988,2]
[333159748,1721895048539,-500.0,0.00010988,2]
[333159749,1721895048549,-1001.5,0.00010988,2]
[333159750,1721895048559,-500.0,0.00010988,2]
[333159751,1721895048571,-500.0,0.00010988,2]
[333159752,1721895048581,-500.0,0.00010988,2]
[333159753,1721895048591,-500.0,0.00010988,2]
[333159754,1721895048601,-500.0,0.00010988,2]
[333159755,1721895048611,-1166.69,0.00010988,2]
[333159756,1721895048622,-500.0,0.00010988,2]
[333159757,1721895048633,-500.0,0.00010988,2]
[333159758,1721895048643,-500.0,0.00010988,2]
[333159759,1721895048654,-500.0,0.00010988,2]
[333159760,1721895048664,-500.0,0.00010988,2]
[333159761,1721895048675,-376.09,0.00010988,2]
[333159762,1721895048686,-500.0,0.00010988,2]
[333159763,1721895048697,-500.0,0.00010988,2]
[333159764,1721895048707,-825.37,0.00010988,2]
[333159765,1721895048718,-500.0,0.00010988,2]
[333159766,1721895048728,-619.4,0.00010988,2]
[333159767,1721895048739,-500.0,0.00010988,2]
[333159768,1721895048750,-639.64,0.00010988,2]
[333159769,1721895048762,-500.0,0.00010988,2]
[333159770,1721895048772,-500.0,0.00010988,2]
[333159771,1721895048783,-500.0,0.00010988,2]
[333159772,1721895048795,-500.0,0.00010988,2]
[333159773,1721895048806,-589.31,0.00010988,2]
[333159774,1721895048817,-500.0,0.00010988,2]
[333159775,1721895048829,-500.0,0.00010988,2]
[333159776,1721895048840,-565.08,0.00010988,2]
[333159777,1721895048851,-500.0,0.00010988,2]
[333159778,1721895048862,-500.0,0.00010988,2]
[333159779,1721895048874,-1663.27,0.00010988,2]
[333159780,1721895048885,-500.0,0.00010988,2]
[333159781,1721895048895,-500.0,0.00010988,2]
[333159782,1721895048906,-910.05,0.00010988,2]
[333159783,1721895048917,-781.66,0.00010988,2]
[333159784,1721895048928,-500.0,0.00010988,2]
[333159785,1721895048939,-500.0,0.00010988,2]
[333159786,1721895048949,-500.0,0.00010988,2]
[333159787,1721895048960,-500.0,0.00010988,2]
[333159788,1721895048971,-500.0,0.00010988,2]
[333159789,1721895048984,-500.0,0.00010989,2]
[333159790,1721895048996,-500.0,0.00010989,2]
[333159791,1721895049007,-959.5,0.00010989,2]
[333159792,1721895049018,-959.5,0.00010989,2]
[333159793,1721895049030,-1117.95,0.00010989,2]
[333159794,1721895049041,-1117.95,0.00010989,2]
[333159795,1721895049051,-500.0,0.00010989,2]
[333159796,1721895049063,-500.0,0.00010989,2]
[333159797,1721895049074,-500.0,0.00010989,2]
[333159798,1721895049085,-500.0,0.00010989,2]
[333159799,1721895049096,-756.46,0.00010989,2]
[333159800,1721895049107,-756.46,0.00010989,2]
[333159801,1721895049121,-1190.2,0.00010989,2]
[333159802,1721895049131,-1190.2,0.00010989,2]
[333159803,1721895049143,-325.4,0.00010989,2]
[333159804,1721895049154,-500.0,0.00010989,2]
[333159805,1721895049166,-636.51,0.00010989,2]
[333159806,1721895049177,-636.51,0.00010989,2]
[333159807,1721895049187,-500.0,0.00010989,2]
[333159808,1721895049199,-500.0,0.00010989,2]
[333159809,1721895049210,-500.0,0.00010989,2]
[333159810,1721895049220,-805.4,0.00010989,2]
[333159811,1721895049230,-500.0,0.00010989,2]
[333159812,1721895049240,-1431.8,0.00010989,2]
[333159813,1721895049251,-515.63,0.00010989,2]
[333159814,1721895049261,-515.63,0.00010989,2]
[333159815,1721895049272,-500.0,0.00010989,2]
[333159816,1721895049284,-500.0,0.00010989,2]
[333159817,1721895049296,-500.0,0.00010989,2]
[333159818,1721895049307,-500.0,0.00010989,2]
[333159819,1721895049318,-579.67495354,0.00010989,2]
[333159820,1721895049329,-1498.81,0.00010989,2]
[333159821,1721895049341,-1498.81,0.00010989,2]
[333159822,1721895049353,-1306.88,0.00010989,2]
[333159823,1721895049365,-2345.74,0.00010989,2]
[333159824,1721895049379,-737.33,0.00010989,2]
[333159825,1721895049391,-1719.81,0.00010989,2]
[333159826,1721895049402,-1679.07,0.00010989,2]
[333159827,1721895049414,-2567.81,0.00010989,2]
[333159828,1721895049427,-500.0,0.00010989,2]
[333159829,1721895049438,-500.0,0.00010989,2]
[333159830,1721895049451,-500.0,0.00010989,2]
[333159831,1721895049462,-500.0,0.00010989,2]
[333159832,1721895049473,-500.0,0.00010989,2]
[333159833,1721895049485,-828.51,0.00010989,2]
[333159834,1721895049496,-500.0,0.00010989,2]
[333159835,1721895049506,-500.0,0.00010989,2]
[333159836,1721895049517,-500.0,0.00010989,2]
[333159837,1721895049527,-500.0,0.00010989,2]
[333159838,1721895049538,-500.0,0.00010989,2]
[333159839,1721895049550,-500.0,0.00010989,2]
[333159840,1721895049561,-500.0,0.00010989,2]
[333159841,1721895049573,-500.0,0.00010989,2]
[333159842,1721895049584,-500.0,0.00010989,2]
[333159843,1721895049595,-1572.32,0.00010989,2]
[333159844,1721895049607,-500.0,0.00010989,2]
[333159845,1721895049617,-896.85,0.00010989,2]
[333159846,1721895049630,-500.92,0.00010989,2]
[333159847,1721895049641,-2636.17,0.00010989,2]
[333159848,1721895049653,-1454.16,0.00010989,2]
[333159849,1721895049665,-555.33,0.00010989,2]
[333159850,1721895049677,-932.58,0.00010989,2]
[333159851,1721895049690,-1707.1,0.00010989,2]
[333159852,1721895049702,-1232.44,0.00010989,2]
[333159853,1721895049714,-513.0,0.0001099,2]
[333159854,1721895049726,-500.0,0.0001099,2]
[333159855,1721895049737,-500.0,0.0001099,2]
[333159856,1721895049749,-500.0,0.0001099,2]
[333159857,1721895049760,-500.0,0.0001099,2]
[333159858,1721895049771,-584.72,0.0001099,2]
[333159859,1721895049782,-150.0,0.0001099,2]
[333159860,1721895049794,-500.0,0.0001099,2]
[333159861,1721895049805,-805.4,0.0001099,2]
[333159862,1721895049817,-500.0,0.0001099,2]